[Event "*** Titled Tuesday Blitz"]
[Site "Chess.com"]
[Date "2020.12.29"]
[Round "1"]
[White "Shepherdboy"]
[Black "Aemulus20"]
[Result "1/2-1/2"]
[WhiteElo "2317"]
[BlackElo "2596"]
[TimeControl "180+1"]
[EndTime "10:10:00 PST"]
[Termination "Game drawn - timeout vs insufficient material"]

1. Nf3 {[%clk 0:02:56.9]} 1... c5 {[%clk 0:02:59.4]} 2. c3 {[%clk 0:02:55.5]}
2... g6 {[%clk 0:02:58.5]} 3. d4 {[%clk 0:02:53.1]} 3... cxd4 {[%clk 0:02:58.4]}
4. cxd4 {[%clk 0:02:52.2]} 4... Bg7 {[%clk 0:02:58.7]} 5. Nc3 {[%clk 0:02:50.6]}
5... Nf6 {[%clk 0:02:56.6]} 6. e3 {[%clk 0:02:42.5]} 6... O-O {[%clk 0:02:50.2]}
7. Be2 {[%clk 0:02:41.4]} 7... d6 {[%clk 0:02:44.2]} 8. O-O {[%clk 0:02:41.1]}
8... a6 {[%clk 0:02:43.2]} 9. Bd2 {[%clk 0:02:35.1]} 9... b5 {[%clk 0:02:42]}
10. Rc1 {[%clk 0:02:34.1]} 10... Bb7 {[%clk 0:02:41.8]} 11. Qb3 {[%clk
0:02:31.1]} 11... Nc6 {[%clk 0:02:24.7]} 12. Rfd1 {[%clk 0:02:30]} 12... Rc8
{[%clk 0:02:23.4]} 13. a4 {[%clk 0:02:20.2]} 13... b4 {[%clk 0:02:05.8]} 14. d5
{[%clk 0:02:20.1]} 14... bxc3 {[%clk 0:01:50.9]} 15. Bxc3 {[%clk 0:02:21]} 15...
Rb8 {[%clk 0:01:32.7]} 16. dxc6 {[%clk 0:02:18.5]} 16... Bxc6 {[%clk 0:01:33.6]}
17. Qc4 {[%clk 0:02:17.9]} 17... Bb7 {[%clk 0:01:29.1]} 18. b4 {[%clk
0:02:14.9]} 18... Qd7 {[%clk 0:01:25.8]} 19. Qa2 {[%clk 0:02:10.1]} 19... Rfc8
{[%clk 0:01:20]} 20. Qa1 {[%clk 0:02:01.7]} 20... Rc7 {[%clk 0:01:07]} 21. b5
{[%clk 0:01:51.8]} 21... axb5 {[%clk 0:01:06.5]} 22. axb5 {[%clk 0:01:52.7]}
22... Rbc8 {[%clk 0:01:05.4]} 23. Bb2 {[%clk 0:01:49.7]} 23... Rc2 {[%clk
0:01:04.1]} 24. Bd3 {[%clk 0:01:29.3]} 24... R2c5 {[%clk 0:01:03.9]} 25. Rxc5
{[%clk 0:01:21.6]} 25... Rxc5 {[%clk 0:01:03.4]} 26. Rc1 {[%clk 0:01:21.5]}
26... Rxc1+ {[%clk 0:01:02.2]} 27. Qxc1 {[%clk 0:01:20.2]} 27... e5 {[%clk
0:00:55.2]} 28. Nd2 {[%clk 0:01:12.7]} 28... Ne8 {[%clk 0:00:50.4]} 29. b6
{[%clk 0:01:09.3]} 29... d5 {[%clk 0:00:49.4]} 30. Qc5 {[%clk 0:00:54.5]} 30...
Bf8 {[%clk 0:00:46.7]} 31. Qb5 {[%clk 0:00:51.2]} 31... Qxb5 {[%clk 0:00:44]}
32. Bxb5 {[%clk 0:00:52.1]} 32... Nd6 {[%clk 0:00:44.5]} 33. Be2 {[%clk
0:00:45.8]} 33... f6 {[%clk 0:00:44.5]} 34. f4 {[%clk 0:00:43.3]} 34... exf4
{[%clk 0:00:40.2]} 35. exf4 {[%clk 0:00:44.2]} 35... Nf5 {[%clk 0:00:35.5]} 36.
Nb3 {[%clk 0:00:43.1]} 36... Kf7 {[%clk 0:00:32.4]} 37. g4 {[%clk 0:00:42.7]}
37... Nd6 {[%clk 0:00:32]} 38. Na5 {[%clk 0:00:39.4]} 38... Bc8 {[%clk
0:00:20.5]} 39. Bf3 {[%clk 0:00:38]} 39... Ke6 {[%clk 0:00:20]} 40. f5+ {[%clk
0:00:30.9]} 40... gxf5 {[%clk 0:00:20.9]} 41. gxf5+ {[%clk 0:00:29.7]} 41...
Nxf5 {[%clk 0:00:21.8]} 42. b7 {[%clk 0:00:23.6]} 42... Bxb7 {[%clk 0:00:22.1]}
43. Nxb7 {[%clk 0:00:24.1]} 43... Bb4 {[%clk 0:00:18.7]} 44. Bg4 {[%clk
0:00:18.1]} 44... d4 {[%clk 0:00:13]} 45. Nd8+ {[%clk 0:00:16.6]} 45... Ke5
{[%clk 0:00:12.9]} 46. Bxf5 {[%clk 0:00:13.3]} 46... Kxf5 {[%clk 0:00:13.4]} 47.
Nc6 {[%clk 0:00:13.4]} 47... Bc5 {[%clk 0:00:12.6]} 48. Bxd4 {[%clk 0:00:12.7]}
48... Bd6 {[%clk 0:00:12.6]} 49. h3 {[%clk 0:00:09.8]} 49... Kg6 {[%clk
0:00:12.9]} 50. Kg2 {[%clk 0:00:09.6]} 50... h5 {[%clk 0:00:13.4]} 51. Be3
{[%clk 0:00:08.8]} 51... Kf5 {[%clk 0:00:13.4]} 52. Nd4+ {[%clk 0:00:08.3]}
52... Ke4 {[%clk 0:00:13.8]} 53. Bf2 {[%clk 0:00:08.4]} 53... Bc5 {[%clk
0:00:13.1]} 54. Ne6 {[%clk 0:00:07.9]} 54... Bd6 {[%clk 0:00:12]} 55. Ng7 {[%clk
0:00:07.6]} 55... f5 {[%clk 0:00:09.1]} 56. Nxh5 {[%clk 0:00:07.1]} 56... f4
{[%clk 0:00:09.4]} 57. Nf6+ {[%clk 0:00:05.3]} 57... Kf5 {[%clk 0:00:09.7]} 58.
Ng4 {[%clk 0:00:04.5]} 58... Ke4 {[%clk 0:00:10.2]} 59. Nf6+ {[%clk 0:00:04.3]}
59... Kf5 {[%clk 0:00:10.3]} 60. Nd5 {[%clk 0:00:04.3]} 60... Ke4 {[%clk
0:00:09.8]} 61. Nc3+ {[%clk 0:00:04.5]} 61... Kd3 {[%clk 0:00:10]} 62. Nb5
{[%clk 0:00:04.4]} 62... Bb8 {[%clk 0:00:09]} 63. Kf3 {[%clk 0:00:04.5]} 63...
Kc4 {[%clk 0:00:09.2]} 64. Na3+ {[%clk 0:00:03.5]} 64... Kd5 {[%clk 0:00:09.8]}
65. Nc2 {[%clk 0:00:03.1]} 65... Ke5 {[%clk 0:00:09.5]} 66. Ne1 {[%clk
0:00:03.5]} 66... Kf5 {[%clk 0:00:09.8]} 67. Ng2 {[%clk 0:00:04.4]} 67... Bc7
{[%clk 0:00:09.6]} 68. Be1 {[%clk 0:00:03.6]} 68... Kg5 {[%clk 0:00:10]} 69. Bd2
{[%clk 0:00:03.5]} 69... Kh5 {[%clk 0:00:10.5]} 70. Bxf4 {[%clk 0:00:02.8]}
70... Bd8 {[%clk 0:00:11.2]} 71. Bg3 {[%clk 0:00:01.8]} 71... Be7 {[%clk
0:00:11.5]} 72. Bf2 {[%clk 0:00:02.7]} 72... Kg6 {[%clk 0:00:11.4]} 73. Ne3
{[%clk 0:00:03.2]} 73... Kh5 {[%clk 0:00:11.7]} 74. Ng4 {[%clk 0:00:04.1]} 74...
Bg5 {[%clk 0:00:11.8]} 75. Nh2 {[%clk 0:00:04.2]} 75... Bf6 {[%clk 0:00:11.7]}
76. Nf1 {[%clk 0:00:05.1]} 76... Be7 {[%clk 0:00:12.1]} 77. Ng3+ {[%clk
0:00:05.1]} 77... Kg6 {[%clk 0:00:12.3]} 78. Kg4 {[%clk 0:00:04.5]} 78... Bd8
{[%clk 0:00:12.6]} 79. Ne4 {[%clk 0:00:05]} 79... Kh6 {[%clk 0:00:12.4]} 80. Bh4
{[%clk 0:00:05.5]} 80... Bc7 {[%clk 0:00:12]} 81. Bg5+ {[%clk 0:00:05.5]} 81...
Kh7 {[%clk 0:00:12.5]} 82. h4 {[%clk 0:00:05.8]} 82... Be5 {[%clk 0:00:13.1]}
83. h5 {[%clk 0:00:05.9]} 83... Bd4 {[%clk 0:00:13]} 84. Ng3 {[%clk 0:00:05.7]}
84... Bc3 {[%clk 0:00:12.9]} 85. Ne2 {[%clk 0:00:05.9]} 85... Ba1 {[%clk
0:00:12.9]} 86. Nf4 {[%clk 0:00:06.3]} 86... Bg7 {[%clk 0:00:13]} 87. Bh4 {[%clk
0:00:06.5]} 87... Ba1 {[%clk 0:00:12.7]} 88. Nh3 {[%clk 0:00:06.3]} 88... Bg7
{[%clk 0:00:12.5]} 89. Bg3 {[%clk 0:00:06.6]} 89... Kh6 {[%clk 0:00:12.2]} 90.
Bf4+ {[%clk 0:00:06.8]} 90... Kh7 {[%clk 0:00:12.8]} 91. Ng5+ {[%clk 0:00:07.2]}
91... Kg8 {[%clk 0:00:13.2]} 92. Kf5 {[%clk 0:00:07.5]} 92... Bc3 {[%clk
0:00:11.7]} 93. Kg6 {[%clk 0:00:07.5]} 93... Bb2 {[%clk 0:00:11.6]} 94. Nh3
{[%clk 0:00:06.1]} 94... Kh8 {[%clk 0:00:11.7]} 95. Bg5 {[%clk 0:00:06.1]} 95...
Kg8 {[%clk 0:00:09.8]} 96. Nf4 {[%clk 0:00:06]} 96... Bg7 {[%clk 0:00:09.2]} 97.
Bf6 {[%clk 0:00:04.1]} 97... Bf8 {[%clk 0:00:09.6]} 98. Ne6 {[%clk 0:00:03.8]}
98... Bh6 {[%clk 0:00:06.1]} 1/2-1/2

[Event "*** Titled Tuesday Blitz"]
[Site "Chess.com"]
[Date "2020.12.29"]
[Round "1"]
[White "zaur-mammadov"]
[Black "DavidEgglestonIM"]
[Result "0-1"]
[WhiteElo "2726"]
[BlackElo "2824"]
[TimeControl "180+1"]
[EndTime "10:10:37 PST"]
[Termination "DavidEgglestonIM won by checkmate"]

1. e4 {[%clk 0:03:00]} 1... e6 {[%clk 0:02:58.5]} 2. d4 {[%clk 0:02:57.8]} 2...
d5 {[%clk 0:02:58]} 3. e5 {[%clk 0:02:58.3]} 3... c5 {[%clk 0:02:57.6]} 4. c3
{[%clk 0:02:55.4]} 4... Nc6 {[%clk 0:02:57.3]} 5. Nf3 {[%clk 0:02:53]} 5... Qb6
{[%clk 0:02:50.8]} 6. Na3 {[%clk 0:02:50.5]} 6... cxd4 {[%clk 0:02:48.1]} 7.
cxd4 {[%clk 0:02:49.8]} 7... Bb4+ {[%clk 0:02:45.1]} 8. Bd2 {[%clk 0:02:48.8]}
8... f6 {[%clk 0:02:40]} 9. Nc2 {[%clk 0:02:46.5]} 9... Bxd2+ {[%clk 0:02:38.7]}
10. Qxd2 {[%clk 0:02:47.4]} 10... fxe5 {[%clk 0:02:38.5]} 11. dxe5 {[%clk
0:02:47.4]} 11... Nge7 {[%clk 0:02:36.9]} 12. Bd3 {[%clk 0:02:47.2]} 12... O-O
{[%clk 0:02:33.3]} 13. Ncd4 {[%clk 0:02:46.2]} 13... Nxd4 {[%clk 0:02:26.7]} 14.
Nxd4 {[%clk 0:02:47.1]} 14... Nc6 {[%clk 0:02:17.3]} 15. Nxc6 {[%clk 0:02:44.2]}
15... bxc6 {[%clk 0:02:15.4]} 16. O-O {[%clk 0:02:44.5]} 16... c5 {[%clk
0:02:14.6]} 17. b3 {[%clk 0:02:44.3]} 17... Ba6 {[%clk 0:02:12.2]} 18. Rac1
{[%clk 0:02:42.4]} 18... Bxd3 {[%clk 0:02:06.8]} 19. Qxd3 {[%clk 0:02:43.3]}
19... Rf5 {[%clk 0:02:06.6]} 20. Qe3 {[%clk 0:02:36.1]} 20... Rc8 {[%clk
0:01:56.6]} 21. Rfd1 {[%clk 0:02:33.3]} 21... Qc7 {[%clk 0:01:51.4]} 22. f4
{[%clk 0:02:30.7]} 22... Qb6 {[%clk 0:01:45.7]} 23. g3 {[%clk 0:02:29.3]} 23...
d4 {[%clk 0:01:45.1]} 24. Qe4 {[%clk 0:02:29.5]} 24... Rff8 {[%clk 0:01:41.3]}
25. Rc4 {[%clk 0:02:26.6]} 25... Rfd8 {[%clk 0:01:40.5]} 26. Kg2 {[%clk
0:02:24.7]} 26... a5 {[%clk 0:01:40.2]} 27. h4 {[%clk 0:02:21.4]} 27... Rd5
{[%clk 0:01:40.1]} 28. h5 {[%clk 0:02:16.9]} 28... h6 {[%clk 0:01:38.8]} 29. g4
{[%clk 0:02:08]} 29... Rcd8 {[%clk 0:01:38]} 30. Rd3 {[%clk 0:02:06.1]} 30...
Qa6 {[%clk 0:01:34.3]} 31. Kg3 {[%clk 0:02:04.8]} 31... Qb7 {[%clk 0:01:29.2]}
32. Kh3 {[%clk 0:01:54.9]} 32... Qf7 {[%clk 0:01:28.6]} 33. Ra4 {[%clk
0:01:49.1]} 33... Rf8 {[%clk 0:01:27.9]} 34. Kg3 {[%clk 0:01:48.9]} 34... Qc7
{[%clk 0:01:26.7]} 35. Qg6 {[%clk 0:01:43.5]} 35... Qc6 {[%clk 0:01:18.5]} 36.
g5 {[%clk 0:01:43.8]} 36... hxg5 {[%clk 0:01:17.2]} 37. Qxg5 {[%clk 0:01:32]}
37... Rf5 {[%clk 0:01:14]} 38. Qg6 {[%clk 0:01:32.2]} 38... Rd7 {[%clk 0:00:53]}
39. Rxa5 {[%clk 0:01:22.8]} 39... Rf8 {[%clk 0:00:52.1]} 40. Rf3 {[%clk
0:01:06.6]} 40... d3 {[%clk 0:00:44.6]} 41. Rxd3 {[%clk 0:00:52.9]} 41... Rxd3+
{[%clk 0:00:44.5]} 42. Qxd3 {[%clk 0:00:53.8]} 42... Qh1 {[%clk 0:00:44.3]} 43.
Qe3 {[%clk 0:00:54.2]} 43... Qxh5 {[%clk 0:00:40.5]} 44. Rxc5 {[%clk 0:00:53.9]}
44... Qg6+ {[%clk 0:00:33.8]} 45. Kf2 {[%clk 0:00:51.8]} 45... Qb1 {[%clk
0:00:32.7]} 46. Qd2 {[%clk 0:00:47.6]} 46... Qe4 {[%clk 0:00:31.2]} 47. Rc4
{[%clk 0:00:45.1]} 47... Qxe5 {[%clk 0:00:31.1]} 48. a4 {[%clk 0:00:40.6]} 48...
Qf6 {[%clk 0:00:29]} 49. Ke2 {[%clk 0:00:33.2]} 49... Qh4 {[%clk 0:00:24]} 50.
Qe3 {[%clk 0:00:30.7]} 50... Qh2+ {[%clk 0:00:23.8]} 51. Kd3 {[%clk 0:00:26.2]}
51... Rd8+ {[%clk 0:00:22.5]} 52. Kc3 {[%clk 0:00:26.2]} 52... Qh6 {[%clk
0:00:19.1]} 53. a5 {[%clk 0:00:25.1]} 53... Qf6+ {[%clk 0:00:18.9]} 54. Qe5
{[%clk 0:00:25.1]} 54... Qe7 {[%clk 0:00:17.9]} 55. a6 {[%clk 0:00:23.5]} 55...
Qd7 {[%clk 0:00:17.1]} 56. Qd4 {[%clk 0:00:19.2]} 56... Qe8 {[%clk 0:00:14.7]}
57. Qe5 {[%clk 0:00:12.8]} 57... Qd7 {[%clk 0:00:14.7]} 58. Kb2 {[%clk
0:00:11.9]} 58... Qd2+ {[%clk 0:00:14]} 59. Ka3 {[%clk 0:00:12.5]} 59... Qd1
{[%clk 0:00:10.3]} 60. Qxe6+ {[%clk 0:00:12.1]} 60... Kh7 {[%clk 0:00:10]} 61.
Qf5+ {[%clk 0:00:12.4]} 61... Kg8 {[%clk 0:00:09.7]} 62. Qc2 {[%clk 0:00:12.6]}
62... Qa1+ {[%clk 0:00:08]} 63. Qa2 {[%clk 0:00:13]} 63... Qf6 {[%clk
0:00:07.9]} 64. Ra4 {[%clk 0:00:11.6]} 64... Qd6+ {[%clk 0:00:07.2]} 65. Rb4
{[%clk 0:00:11.4]} 65... Qxa6+ {[%clk 0:00:06]} 66. Ra4 {[%clk 0:00:12.3]} 66...
Qd6+ {[%clk 0:00:06.1]} 67. Kb2 {[%clk 0:00:12]} 67... Qd2+ {[%clk 0:00:04.5]}
68. Ka3 {[%clk 0:00:12.4]} 68... Qd6+ {[%clk 0:00:04.7]} 69. Kb2 {[%clk
0:00:12.8]} 69... Qd2+ {[%clk 0:00:05.1]} 70. Ka3 {[%clk 0:00:12.7]} 70... Qc1+
{[%clk 0:00:05.2]} 71. Qb2 {[%clk 0:00:12.3]} 71... Qc5+ {[%clk 0:00:05]} 72.
Ka2 {[%clk 0:00:12.9]} 72... Rc8 {[%clk 0:00:05.3]} 73. Qe5 {[%clk 0:00:09.9]}
73... Qc2+ {[%clk 0:00:04.8]} 74. Ka3 {[%clk 0:00:09.7]} 74... Qc1+ {[%clk
0:00:04.7]} 75. Qb2 {[%clk 0:00:10.1]} 75... Qc5+ {[%clk 0:00:04.7]} 76. Ka2
{[%clk 0:00:10.6]} 76... Qd5 {[%clk 0:00:04.7]} 77. Rb4 {[%clk 0:00:08.6]} 77...
Qd1 {[%clk 0:00:03.8]} 78. Ra4 {[%clk 0:00:08.5]} 78... Rc2 {[%clk 0:00:03.6]}
79. Rb4 {[%clk 0:00:08.2]} 79... Rxb2+ {[%clk 0:00:02.9]} 80. Kxb2 {[%clk
0:00:09.1]} 80... Qd2+ {[%clk 0:00:03.3]} 81. Ka3 {[%clk 0:00:10]} 81... Kh7
{[%clk 0:00:03.6]} 82. Rc4 {[%clk 0:00:10.3]} 82... Kh6 {[%clk 0:00:03.7]} 83.
Ka4 {[%clk 0:00:10.7]} 83... g6 {[%clk 0:00:04]} 84. Ka3 {[%clk 0:00:11.2]}
84... Kh5 {[%clk 0:00:04.2]} 85. Ka4 {[%clk 0:00:11.7]} 85... Kg4 {[%clk
0:00:04.2]} 86. Ka3 {[%clk 0:00:12.3]} 86... Kf3 {[%clk 0:00:04]} 87. Ka4 {[%clk
0:00:12.3]} 87... Ke3 {[%clk 0:00:03.9]} 88. Ka3 {[%clk 0:00:12.8]} 88... Kd3
{[%clk 0:00:04.1]} 89. Ka4 {[%clk 0:00:13.2]} 89... Qd1 {[%clk 0:00:03.6]} 90.
Ka3 {[%clk 0:00:12.8]} 90... Qa1+ {[%clk 0:00:03.7]} 91. Kb4 {[%clk 0:00:13.1]}
91... Qa6 {[%clk 0:00:03.6]} 92. Rc3+ {[%clk 0:00:13.4]} 92... Kd4 {[%clk
0:00:03.1]} 93. Rc4+ {[%clk 0:00:14.3]} 93... Kd5 {[%clk 0:00:03.5]} 94. Rc5+
{[%clk 0:00:14.7]} 94... Kd6 {[%clk 0:00:03.3]} 95. Rc4 {[%clk 0:00:15.6]} 95...
Qb6+ {[%clk 0:00:03.1]} 96. Ka3 {[%clk 0:00:15.9]} 96... Ke6 {[%clk 0:00:02.8]}
97. Ka4 {[%clk 0:00:15.6]} 97... Kf5 {[%clk 0:00:02.9]} 98. b4 {[%clk
0:00:15.1]} 98... Qa6+ {[%clk 0:00:02.8]} 99. Kb3 {[%clk 0:00:15.4]} 99... Kg4
{[%clk 0:00:02.6]} 100. Rd4 {[%clk 0:00:14.5]} 100... Qb5 {[%clk 0:00:02.5]}
101. Rc4 {[%clk 0:00:14.7]} 101... Qd5 {[%clk 0:00:02.3]} 102. Kc3 {[%clk
0:00:14.3]} 102... Kf3 {[%clk 0:00:02.3]} 103. Rd4 {[%clk 0:00:13.3]} 103...
Qc6+ {[%clk 0:00:01.3]} 104. Rc4 {[%clk 0:00:13.5]} 104... Qf6+ {[%clk
0:00:02.2]} 105. Rd4 {[%clk 0:00:13.6]} 105... Ke3 {[%clk 0:00:01.6]} 106. Kc4
{[%clk 0:00:12.7]} 106... Qxd4+ {[%clk 0:00:02.5]} 107. Kb5 {[%clk 0:00:13.6]}
107... Qxf4 {[%clk 0:00:02.4]} 108. Kc6 {[%clk 0:00:14.5]} 108... g5 {[%clk
0:00:03.1]} 109. b5 {[%clk 0:00:15.4]} 109... g4 {[%clk 0:00:04]} 110. b6 {[%clk
0:00:16.2]} 110... g3 {[%clk 0:00:04.9]} 111. b7 {[%clk 0:00:17.1]} 111... g2
{[%clk 0:00:05.6]} 112. b8=Q {[%clk 0:00:17.2]} 112... Qxb8 {[%clk 0:00:04.4]}
113. Kd7 {[%clk 0:00:18.1]} 113... g1=Q {[%clk 0:00:03.5]} 114. Ke6 {[%clk
0:00:19]} 114... Qg6+ {[%clk 0:00:03.5]} 115. Kd5 {[%clk 0:00:19.6]} 115... Qb5#
{[%clk 0:00:03.2]} 0-1

[Event "*** Titled Tuesday Blitz"]
[Site "Chess.com"]
[Date "2020.12.29"]
[Round "2"]
[White "Alexandercs432"]
[Black "onnoelgersma"]
[Result "0-1"]
[WhiteElo "2201"]
[BlackElo "2424"]
[TimeControl "180+1"]
[EndTime "10:13:40 PST"]
[Termination "onnoelgersma won by resignation"]

1. e4 {[%clk 0:03:00.2]} 1... c5 {[%clk 0:02:57.8]} 2. Nf3 {[%clk 0:03:00.3]}
2... e6 {[%clk 0:02:55.9]} 3. d4 {[%clk 0:03:00.4]} 3... cxd4 {[%clk 0:02:56.8]}
4. Nxd4 {[%clk 0:03:01.3]} 4... Nc6 {[%clk 0:02:57.6]} 5. Nc3 {[%clk 0:03:01.1]}
5... a6 {[%clk 0:02:58.1]} 6. Nxc6 {[%clk 0:03:00.7]} 6... bxc6 {[%clk 0:02:59]}
7. Bd3 {[%clk 0:03:01.6]} 7... Qc7 {[%clk 0:02:58.4]} 8. O-O {[%clk 0:03:01.9]}
8... h5 {[%clk 0:02:59]} 9. Re1 {[%clk 0:02:58.6]} 9... Rb8 {[%clk 0:02:48.1]}
10. e5 {[%clk 0:02:53.1]} 10... Bc5 {[%clk 0:02:28.2]} 11. Ne4 {[%clk
0:02:51.8]} 11... Be7 {[%clk 0:02:24.7]} 12. b3 {[%clk 0:02:47.1]} 12... Qxe5
{[%clk 0:02:13.1]} 13. Rb1 {[%clk 0:02:46.4]} 13... Qc7 {[%clk 0:02:12.9]} 14.
Bb2 {[%clk 0:02:45.1]} 14... Nf6 {[%clk 0:02:13.3]} 15. Ng5 {[%clk 0:02:28.4]}
15... Ng4 {[%clk 0:02:03.4]} 16. g3 {[%clk 0:02:19]} 16... Bxg5 {[%clk
0:02:00.3]} 17. f4 {[%clk 0:02:17.2]} 17... Qb6+ {[%clk 0:01:57.2]} 0-1

[Event "*** Titled Tuesday Blitz"]
[Site "Chess.com"]
[Date "2020.12.29"]
[Round "2"]
[White "konradrutkowski"]
[Black "j2806"]
[Result "1-0"]
[WhiteElo "2370"]
[BlackElo "2000"]
[TimeControl "180+1"]
[EndTime "10:13:40 PST"]
[Termination "konradrutkowski won by resignation"]

1. e4 {[%clk 0:03:00.9]} 1... c5 {[%clk 0:02:49.1]} 2. Nf3 {[%clk 0:03:00.2]}
2... Nc6 {[%clk 0:02:44.1]} 3. Bb5 {[%clk 0:02:57.8]} 3... Nd4 {[%clk
0:02:41.9]} 4. Nxd4 {[%clk 0:02:56.5]} 4... cxd4 {[%clk 0:02:41.5]} 5. O-O
{[%clk 0:02:57.1]} 5... a6 {[%clk 0:02:40.4]} 6. Bc4 {[%clk 0:02:56.4]} 6... e6
{[%clk 0:02:40.1]} 7. c3 {[%clk 0:02:52.2]} 7... dxc3 {[%clk 0:02:37.5]} 8. Nxc3
{[%clk 0:02:50.4]} 8... Nf6 {[%clk 0:02:36.6]} 9. d4 {[%clk 0:02:49.1]} 9... d5
{[%clk 0:02:35.6]} 10. exd5 {[%clk 0:02:48.6]} 10... Nxd5 {[%clk 0:02:34.9]} 11.
Bxd5 {[%clk 0:02:41.2]} 11... exd5 {[%clk 0:02:34.3]} 12. Re1+ {[%clk 0:02:40]}
12... Be7 {[%clk 0:02:32.8]} 13. Bg5 {[%clk 0:02:32.4]} 13... Be6 {[%clk
0:02:18.9]} 14. Bxe7 {[%clk 0:02:30.2]} 14... Kxe7 {[%clk 0:02:13.4]} 15. Qb3
{[%clk 0:02:17.3]} 15... Re8 {[%clk 0:02:00.8]} 16. Qb4+ {[%clk 0:02:14.7]}
16... Qd6 {[%clk 0:01:56]} 17. Nxd5+ {[%clk 0:02:13.5]} 1-0

[Event "*** Titled Tuesday Blitz"]
[Site "Chess.com"]
[Date "2020.12.29"]
[Round "2"]
[White "WinOrTilt"]
[Black "Pedrada88"]
[Result "1-0"]
[WhiteElo "2111"]
[BlackElo "2324"]
[TimeControl "180+1"]
[EndTime "10:13:55 PST"]
[Termination "WinOrTilt won by checkmate"]

1. d4 {[%clk 0:03:00]} 1... Nf6 {[%clk 0:02:59.1]} 2. Nf3 {[%clk 0:03:00.1]}
2... e6 {[%clk 0:02:59.5]} 3. e3 {[%clk 0:03:00.5]} 3... c5 {[%clk 0:02:59.5]}
4. Bd3 {[%clk 0:03:01]} 4... d5 {[%clk 0:03:00]} 5. c3 {[%clk 0:03:00.9]} 5...
Nc6 {[%clk 0:03:00.4]} 6. Nbd2 {[%clk 0:03:00.9]} 6... Bd6 {[%clk 0:03:00.8]} 7.
O-O {[%clk 0:03:01.4]} 7... O-O {[%clk 0:03:00.5]} 8. Re1 {[%clk 0:03:01.9]}
8... b6 {[%clk 0:02:57.1]} 9. e4 {[%clk 0:03:01.8]} 9... dxe4 {[%clk 0:02:56.5]}
10. Nxe4 {[%clk 0:03:02.7]} 10... Bb7 {[%clk 0:02:56.6]} 11. Nxf6+ {[%clk
0:03:02.7]} 11... Qxf6 {[%clk 0:02:56.1]} 12. Bg5 {[%clk 0:03:03.1]} 12... Nxd4
{[%clk 0:02:37]} 13. Bxf6 {[%clk 0:02:59.9]} 13... Nxf3+ {[%clk 0:02:36.4]} 14.
gxf3 {[%clk 0:02:57.8]} 14... gxf6 {[%clk 0:02:37.3]} 15. Be4 {[%clk 0:02:56.4]}
15... Bxe4 {[%clk 0:02:29.1]} 16. fxe4 {[%clk 0:02:57.3]} 16... Rad8 {[%clk
0:02:29.5]} 17. Qh5 {[%clk 0:02:54.3]} 17... Be5 {[%clk 0:02:24.3]} 18. Rad1
{[%clk 0:02:53.3]} 18... c4 {[%clk 0:02:20.4]} 19. f4 {[%clk 0:02:47.6]} 19...
Bd6 {[%clk 0:02:14.3]} 20. Kh1 {[%clk 0:02:35.9]} 20... Kh8 {[%clk 0:02:11.5]}
21. e5 {[%clk 0:02:30.4]} 21... Be7 {[%clk 0:02:08.4]} 22. Rg1 {[%clk
0:02:25.6]} 22... Rxd1 {[%clk 0:01:58.4]} 23. Rxd1 {[%clk 0:02:26.5]} 23... f5
{[%clk 0:01:53.8]} 24. Rg1 {[%clk 0:02:23.3]} 24... Rg8 {[%clk 0:01:51.7]} 25.
Qxf7 {[%clk 0:02:19.1]} 25... Bc5 {[%clk 0:01:49.9]} 26. Rxg8# {[%clk
0:02:18.2]} 1-0

[Event "*** Titled Tuesday Blitz"]
[Site "Chess.com"]
[Date "2020.12.29"]
[Round "2"]
[White "carloseduar100"]
[Black "wonderfultime"]
[Result "0-1"]
[WhiteElo "2089"]
[BlackElo "3018"]
[TimeControl "180+1"]
[EndTime "10:14:11 PST"]
[Termination "wonderfultime won by resignation"]

1. d4 {[%clk 0:02:59.8]} 1... d5 {[%clk 0:02:55.1]} 2. c3 {[%clk 0:02:58.5]}
2... Nf6 {[%clk 0:02:54.7]} 3. Bg5 {[%clk 0:02:58.4]} 3... Ne4 {[%clk
0:02:52.7]} 4. h4 {[%clk 0:02:58.3]} 4... Nxg5 {[%clk 0:02:50]} 5. hxg5 {[%clk
0:02:58]} 5... c5 {[%clk 0:02:46.5]} 6. e3 {[%clk 0:02:57.2]} 6... e6 {[%clk
0:02:44.7]} 7. Nf3 {[%clk 0:02:56.9]} 7... Nc6 {[%clk 0:02:40.7]} 8. Bd3 {[%clk
0:02:53.6]} 8... g6 {[%clk 0:02:39.9]} 9. Nbd2 {[%clk 0:02:48.3]} 9... Be7
{[%clk 0:02:40.1]} 10. dxc5 {[%clk 0:02:40.5]} 10... Bxc5 {[%clk 0:02:39.2]} 11.
e4 {[%clk 0:02:24.3]} 11... Be7 {[%clk 0:02:31]} 12. exd5 {[%clk 0:02:23.8]}
12... exd5 {[%clk 0:02:29.7]} 13. Qe2 {[%clk 0:02:22.5]} 13... O-O {[%clk
0:02:26.3]} 14. O-O-O {[%clk 0:02:22.3]} 14... Re8 {[%clk 0:02:24]} 15. Rde1
{[%clk 0:02:19.3]} 15... Bd7 {[%clk 0:02:21]} 16. Qe3 {[%clk 0:02:04.5]} 16...
d4 {[%clk 0:02:21.2]} 17. Nxd4 {[%clk 0:01:58.7]} 17... Bxg5 {[%clk 0:02:21.2]}
18. Nxc6 {[%clk 0:01:53.6]} 18... Rxe3 {[%clk 0:02:16.1]} 19. Nxd8 {[%clk
0:01:51.9]} 19... Rxd3 {[%clk 0:02:16.5]} 20. Nxb7 {[%clk 0:01:33.9]} 20... Rxd2
{[%clk 0:02:13.1]} 21. Kb1 {[%clk 0:01:33.2]} 21... Rb8 {[%clk 0:02:12.8]} 0-1

[Event "*** Titled Tuesday Blitz"]
[Site "Chess.com"]
[Date "2020.12.29"]
[Round "2"]
[White "Jungle_Jaguar"]
[Black "ferdipy"]
[Result "1-0"]
[WhiteElo "2612"]
[BlackElo "2161"]
[TimeControl "180+1"]
[EndTime "10:14:15 PST"]
[Termination "Jungle_Jaguar won by resignation"]

1. e4 {[%clk 0:03:00.9]} 1... c5 {[%clk 0:03:00.1]} 2. Nf3 {[%clk 0:03:00.1]}
2... d6 {[%clk 0:03:00.6]} 3. d4 {[%clk 0:03:00.3]} 3... cxd4 {[%clk 0:03:00.9]}
4. Nxd4 {[%clk 0:03:01.2]} 4... Nf6 {[%clk 0:03:01.4]} 5. Nc3 {[%clk 0:03:01.6]}
5... g6 {[%clk 0:03:02]} 6. Be3 {[%clk 0:03:00.5]} 6... Bg7 {[%clk 0:03:02.5]}
7. f3 {[%clk 0:03:00.8]} 7... O-O {[%clk 0:03:03.1]} 8. Qd2 {[%clk 0:03:00.1]}
8... Nc6 {[%clk 0:03:03.5]} 9. O-O-O {[%clk 0:02:59.7]} 9... d5 {[%clk 0:03:04]}
10. exd5 {[%clk 0:02:52.6]} 10... Nxd5 {[%clk 0:03:03.4]} 11. Nxc6 {[%clk
0:02:52.9]} 11... bxc6 {[%clk 0:03:03.9]} 12. Bd4 {[%clk 0:02:51.2]} 12... e5
{[%clk 0:03:04]} 13. Bc5 {[%clk 0:02:50.3]} 13... Be6 {[%clk 0:03:04.6]} 14. Ne4
{[%clk 0:02:43.3]} 14... Rb8 {[%clk 0:03:03.3]} 15. g4 {[%clk 0:02:38.5]} 15...
h6 {[%clk 0:02:59.4]} 16. h4 {[%clk 0:02:37.7]} 16... f5 {[%clk 0:02:54.1]} 17.
gxf5 {[%clk 0:01:58.1]} 17... gxf5 {[%clk 0:02:54.1]} 18. Nc3 {[%clk 0:01:26.4]}
18... e4 {[%clk 0:02:48.2]} 19. Rg1 {[%clk 0:01:26]} 19... Kh7 {[%clk
0:02:32.2]} 20. Bd4 {[%clk 0:01:20.6]} 20... e3 {[%clk 0:02:25.2]} 21. Rxg7+
{[%clk 0:01:19.6]} 1-0